fUST/lending_fUST_20250608
["ID","MTS","AMOUNT","RATE_DAILY","PERIOD"]
[364937975,1749322057259,-440.0,0.00019598,2]
[364937976,1749322057282,-430.0,0.00019598,2]
[364937977,1749322057305,-440.0,0.00019598,2]
[364937978,1749322057330,-440.0,0.00019598,2]
[364937979,1749322057351,-440.0,0.00019598,2]
[364937980,1749322057377,-440.0,0.00019598,2]
[364937981,1749322057400,-440.0,0.00019598,2]
[364937982,1749322057427,-440.0,0.00019598,2]
[364937983,1749322057453,-440.0,0.00019598,2]
[364937984,1749322057478,-440.0,0.00019598,2]
[364937985,1749322057503,-440.0,0.00019598,2]
[364937986,1749322057528,-440.0,0.00019598,2]
[364937987,1749322057553,-440.0,0.00019598,2]
[364937988,1749322057577,-430.0,0.00019598,2]
[364937989,1749322057602,-440.0,0.00019599,2]
[364937990,1749322057627,-440.0,0.00019599,2]
[364937991,1749322057650,-324.72020936,0.00019599,2]
[364937992,1749322057676,-917.02,0.00019599,2]
[364937993,1749322057704,-440.0,0.00019599,2]
[364937994,1749322057730,-430.0,0.00019599,2]
[364937995,1749322057752,-440.0,0.00019599,2]
[364937996,1749322057777,-440.0,0.000196,2]
[364937997,1749322057800,-219.62909382,0.00019612,2]
[364937998,1749322057823,-440.0,0.00019612,2]
[364937999,1749322057846,-440.0,0.00019612,2]
[364938000,1749322057869,-525.67727014,0.00019612,2]
[364938001,1749322057892,-203.4,0.00019612,2]
[364938002,1749322057915,-440.0,0.00019858,2]
[364938003,1749322057940,-1766.18,0.00019868,2]
[364938004,1749322057968,-440.0,0.00019868,2]
[364938005,1749322057994,-440.0,0.00019868,2]
[364938006,1749322058019,-440.0,0.00019868,2]
[364938007,1749322058044,-440.0,0.00019868,2]
[364938008,1749322058069,-440.0,0.00019868,2]
[364938009,1749322058094,-440.0,0.00019868,2]
[364938010,1749322058118,-440.0,0.00019868,2]
[364938011,1749322058144,-440.0,0.00019868,2]
[364938012,1749322058166,-420.0,0.00019872,2]
[364938013,1749322058188,-440.0,0.00019872,2]
[364938014,1749322058211,-290.71,0.00019872,2]
[364938015,1749322058237,-457.39,0.00019872,2]
[364938016,1749322058262,-440.0,0.00019872,2]
[364938017,1749322058286,-440.0,0.00019872,2]
[364938018,1749322058310,-440.0,0.00019872,2]
[364938019,1749322058333,-440.0,0.00019872,2]
[364938020,1749322058358,-440.0,0.00019872,2]
[364938021,1749322058382,-440.0,0.00019873,2]
[364938022,1749322058406,-917.02,0.00019873,2]
[364938023,1749322058430,-440.0,0.00019873,2]
[364938024,1749322058453,-440.0,0.00019874,2]
[364938025,1749322058474,-440.0,0.00019886,2]
[364938026,1749322058496,-440.0,0.00020132,2]
[364938027,1749322058517,-500.0,0.0002014,2]
[364938028,1749322058542,-1766.18,0.00020142,2]
[364938029,1749322058566,-440.0,0.00020142,2]
[364938030,1749322058592,-440.0,0.00020142,2]
[364938031,1749322058617,-440.0,0.00020142,2]
[364938032,1749322058642,-440.0,0.00020142,2]
[364938033,1749322058667,-440.0,0.00020142,2]
[364938034,1749322058690,-167.39971778,0.00020142,2]
[364938035,1749322058715,-430.0,0.00020142,2]
[364938036,1749322058740,-550.74124102,0.00020142,2]
[364938037,1749322058762,-440.0,0.00020146,2]
[364938038,1749322058787,-440.0,0.00020146,2]
[364938039,1749322058824,-440.0,0.00020146,2]
[364938040,1749322058854,-440.0,0.00020146,2]
[364938041,1749322058880,-440.0,0.00020147,2]
[364938042,1749322058903,-917.02,0.00020147,2]
[364938043,1749322058925,-440.0,0.0002016,2]
[364938044,1749322058948,-172.048,0.00020242,2]
[364938045,1749322058973,-200.03491729,0.00020406,2]
[364938046,1749322058998,-1766.18,0.00020416,2]
[364938047,1749322059023,-440.0,0.00020416,2]
[364938048,1749322059050,-440.0,0.00020416,2]
[364938049,1749322059076,-440.0,0.00020416,2]
[364938050,1749322059102,-440.0,0.00020416,2]
[364938051,1749322059128,-440.0,0.00020416,2]
[364938052,1749322059152,-466.57595677,0.0002042,2]
[364938053,1749322059181,-440.0,0.0002042,2]
[364938054,1749322059206,-440.0,0.0002042,2]
[364938055,1749322059234,-440.0,0.00020421,2]
[364938056,1749322059260,-917.02,0.00020421,2]
[364938057,1749322059285,-219.9,0.00020434,2]
[364938058,1749322059310,-162.951236,0.00020548,2]
[364938059,1749322059333,-500.0,0.00020556,2]
[364938060,1749322059356,-834.52263295,0.00020689,2]
[364938061,1749322059378,-229.56495552,0.00020689,2]
[364938062,1749322059400,-160.0,0.00020689,2]
[364938063,1749322059421,-423.90693687,0.00020689,2]
[364938064,1749322059443,-160.0,0.00020689,2]
[364938065,1749322059467,-160.0,0.00020689,2]
[364938066,1749322059491,-842.5625,0.00020689,2]
[364938067,1749322059517,-1766.18,0.0002069,2]
[364938068,1749322059542,-498.70558655,0.0002069,2]
[364938069,1749322059567,-440.0,0.0002069,2]
[364938070,1749322059594,-440.0,0.0002069,2]
[364938071,1749322059619,-440.0,0.0002069,2]
[364938072,1749322059644,-259.72,0.0002069,2]
[364938073,1749322059666,-160.0,0.0002069,2]
[364938074,1749322059692,-440.0,0.00020694,2]
[364938075,1749322059722,-440.0,0.00020695,2]
[364938076,1749322059746,-917.02,0.00020695,2]
[364938077,1749322059919,-260.43,0.000208,2]
[364938078,1749322059942,-595.67,0.000208,2]
[364938079,1749322059964,-420.0,0.00020851,2]
[364938080,1749322059987,-500.0,0.00020855,2]
[364938081,1749322060015,-227.57363282,0.000209,4]
[364938082,1749322060038,-1766.18,0.00020964,2]
[364938083,1749322060063,-440.0,0.00020964,2]
[364938084,1749322060086,-440.0,0.00020964,2]
[364938085,1749322060112,-440.0,0.00020964,2]
[364938086,1749322060135,-440.0,0.00020968,2]
[364938087,1749322060158,-917.02,0.00020969,2]
[364938088,1749322060179,-151.0,0.00020971,2]
[364938089,1749322060200,-239.867652,0.00020971,2]
[364938090,1749322060221,-151.0,0.00020971,2]
[364938091,1749322060249,-227.57363272,0.00021038,4]
[364938092,1749322060270,-500.0,0.00021104,2]
[364938093,1749322060292,-179.42106666,0.00021146,2]
[364938094,1749322060320,-227.57363272,0.00021176,4]
[364938095,1749322060340,-500.0,0.000212,2]
[364938096,1749322060364,-1766.18,0.00021238,2]
[364938097,1749322060388,-295.52235899,0.00021238,2]
[364938098,1749322069129,150.0,0.000189,2]
[364938101,1749322172192,-440.0,0.00019582,2]
[364938102,1749322172216,-440.0,0.00019582,2]
[364938103,1749322172242,-1494.77,0.00019582,2]
[364938104,1749322172266,-420.0,0.00019582,2]
[364938105,1749322172289,-440.0,0.00019582,2]
[364938106,1749322172311,-440.0,0.00019582,2]
[364938107,1749322172334,-440.0,0.00019582,2]
[364938108,1749322172357,-440.0,0.00019582,2]
[364938109,1749322172380,-430.0,0.00019582,2]
[364938110,1749322172402,-440.0,0.00019582,2]
[364938111,1749322172426,-440.0,0.00019582,2]
[364938112,1749322172446,-440.0,0.00019584,2]
[364938113,1749322172471,-440.0,0.00019584,2]
[364938114,1749322172493,-440.0,0.00019584,2]
[364938115,1749322172514,-440.0,0.00019584,2]
[364938116,1749322172537,-432.12186968,0.00019584,2]
[364938117,1749322172558,-430.0,0.00019584,2]
[364938118,1749322172579,-430.0,0.00019584,2]
[364938119,1749322172601,-384.27382801,0.00019584,2]
[364938120,1749322172622,-400.0,0.00019584,2]
[364938121,1749322172644,-440.0,0.00019584,2]
[364938122,1749322172666,-440.0,0.00019584,2]
[364938123,1749322172688,-440.0,0.00019584,2]
[364938124,1749322172709,-430.0,0.00019584,2]
[364938125,1749322172731,-440.0,0.00019584,2]
[364938126,1749322172756,-440.0,0.00019584,2]
[364938127,1749322172777,-507.52922009,0.00019584,2]
[364938128,1749322172799,-449.12365192,0.00019584,2]
[364938129,1749322172820,-324.66792769,0.00019584,2]
[364938130,1749322172843,-430.0,0.00019584,2]
[364938131,1749322172864,-440.0,0.00019584,2]
[364938132,1749322172885,-440.0,0.00019584,2]
[364938133,1749322172906,-430.0,0.00019584,2]
[364938134,1749322172927,-440.0,0.00019584,2]
[364938135,1749322172948,-440.0,0.00019584,2]
[364938136,1749322172969,-423.44687297,0.00019584,2]
[364938137,1749322172990,-440.0,0.00019584,2]
[364938138,1749322173011,-430.0,0.00019584,2]
[364938139,1749322173032,-440.0,0.00019584,2]
[364938140,1749322173054,-440.0,0.00019584,2]
[364938141,1749322173075,-131.61675074,0.00019584,2]
[364938143,1749322203911,-274.63637563,0.00019,2]
[364938167,1749322232442,-7395.57579891,0.00019,2]
[364938168,1749322232453,-315.27844867,0.0001905,2]
[364938169,1749322232462,-176.30409848,0.00019494,2]
[364938170,1749322232473,-440.0,0.00019582,2]
[364938171,1749322232484,-440.0,0.00019582,2]
[364938172,1749322232494,-440.0,0.00019582,2]
[364938173,1749322232505,-300.0,0.00019583,2]
[364938174,1749322232516,-300.0,0.00019583,2]
[364938175,1749322232527,-300.0,0.00019583,2]
[364938176,1749322232538,-308.38324926,0.00019584,2]
[364938177,1749322232549,-440.0,0.00019584,2]
[364938178,1749322232560,-440.0,0.00019584,2]
[364938179,1749322232570,-440.0,0.00019584,2]
[364938180,1749322232580,-440.0,0.00019584,2]
[364938181,1749322232590,-440.0,0.00019584,2]
[364938182,1749322232602,-440.0,0.00019584,2]
[364938183,1749322232612,-440.0,0.00019584,2]
[364938184,1749322232622,-440.0,0.00019584,2]
[364938185,1749322232633,-440.0,0.00019584,2]
[364938187,1749322232776,-440.0,0.00019584,2]
[364938188,1749322232787,-440.0,0.00019584,2]
[364938189,1749322232797,-440.0,0.00019584,2]
[364938190,1749322232807,-315.25999671,0.00019584,2]
[364938191,1749322232817,-428.2439489,0.00019584,2]
[364938192,1749322232827,-14005.37305726,0.00019594,2]
[364938193,1749322232854,-1346.76538087,0.00019594,2]
[364938391,1749322240782,-440.0,0.00019582,2]
[364938392,1749322240792,-440.0,0.00019584,2]
[364938393,1749322240803,-430.0,0.00019584,2]
[364938394,1749322240814,-430.0,0.00019584,2]
[364938395,1749322240825,-410.0,0.00019593,2]
[364938396,1749322240835,-4415.91329124,0.00019594,2]
[364938397,1749322240845,-440.0,0.00019594,2]
[364938398,1749322240855,-500.0,0.00019594,2]
[364938399,1749322240866,-492.62,0.00019594,2]
[364938400,1749322240876,-440.0,0.00019594,2]
[364938401,1749322240890,-440.0,0.00019594,2]
[364938402,1749322240900,-440.0,0.00019594,2]
[364938403,1749322240910,-440.0,0.00019594,2]
[364938404,1749322240919,-440.0,0.00019594,2]
[364938405,1749322240930,-440.0,0.00019594,2]
[364938406,1749322240940,-440.0,0.00019594,2]
[364938408,1749322240950,-440.0,0.00019594,2]
[364938410,1749322240962,-440.0,0.00019594,2]
[364938412,1749322240973,-440.0,0.00019594,2]
[364938414,1749322240982,-430.0,0.00019598,2]
[364938416,1749322240992,-396.39908638,0.00019598,2]
[364938418,1749322241002,-440.0,0.00019598,2]
[364938420,1749322241012,-687.77,0.00019598,2]
[364938421,1749322241022,-440.0,0.00019598,2]
[364938422,1749322241185,-430.0,0.00019598,2]
[364938423,1749322241195,-430.0,0.00019598,2]
[364938424,1749322241206,-325.63700617,0.00019598,2]
[364938425,1749322241218,-416.87199236,0.00019598,2]
[364938426,1749322241229,-440.0,0.00019598,2]
[364938427,1749322241239,-440.0,0.00019598,2]
[364938428,1749322241251,-2327.0510536,0.00019822,2]
[364938429,1749322241261,-440.0,0.00019856,2]
[364938430,1749322241271,-1494.77,0.00019856,2]
[364938431,1749322241282,-440.0,0.00019856,2]
[364938432,1749322241293,-440.0,0.00019856,2]
[364938433,1749322241303,-440.0,0.00019856,2]
[364938434,1749322241314,-440.0,0.00019856,2]
[364938435,1749322241324,-440.0,0.00019856,2]
[364938436,1749322241333,-430.0,0.00019858,2]
[364938437,1749322241344,-420.0,0.00019868,2]
[364938438,1749322241354,-440.0,0.00019868,2]
[364938439,1749322241364,-440.0,0.00019868,2]
[364938440,1749322241376,-687.77,0.00019872,2]
[364938441,1749322241387,-1494.77,0.0002013,2]
[364938442,1749322241399,-449.39049702,0.0002013,2]
[364938443,1749322241409,-328.07,0.0002013,2]
[364938444,1749322241418,-440.0,0.00020142,2]
[364938445,1749322241428,-687.77,0.00020146,2]
[364938446,1749322241438,-1494.77,0.00020404,2]
[364938447,1749322241448,-440.0,0.00020416,2]
[364938448,1749322241457,-687.77,0.0002042,2]
[364938449,1749322241467,-1494.77,0.00020678,2]
[364938450,1749322241476,-160.0,0.00020689,2]
[364938451,1749322241485,-440.0,0.0002069,2]
[364938452,1749322241495,-687.77,0.00020694,2]
[364938453,1749322241504,-160.0,0.00020698,2]
[364938454,1749322241514,-834.52263295,0.00020698,2]
[364938455,1749322241524,-160.0,0.00020698,2]
[364938456,1749322241536,-500.0,0.00020855,2]
[364938457,1749322241547,-235.25625314,0.000209,4]
[364938458,1749322241557,-1494.77,0.00020952,2]
[364938459,1749322241567,-440.0,0.00020964,2]
[364938460,1749322241577,-687.77,0.00020968,2]
[364938461,1749322241587,-235.25625285,0.00021038,4]
[364938462,1749322241597,-235.25625285,0.00021176,4]
[364938463,1749322241610,-176.30409846,0.00021193,2]
[364938464,1749322241619,-1494.77,0.00021226,2]
[364938465,1749322241629,-440.0,0.00021238,2]
[364938466,1749322241639,-687.77,0.00021242,2]
[364938467,1749322241649,-151.0,0.00021257,2]
[364938468,1749322241658,-180.0,0.00021271,2]
[364938469,1749322241669,-180.0,0.00021271,2]
[364938470,1749322241680,-235.25625285,0.00021314,5]
[364938471,1749322241690,-151.61825986,0.00021396,2]
[364938472,1749322241700,-151.0,0.00021396,2]
[364938473,1749322241711,-151.72361605,0.00021396,2]
[364938474,1749322241721,-155.8537623,0.00021396,2]
[364938475,1749322241731,-151.0,0.00021396,2]
[364938476,1749322241741,-151.0,0.00021396,2]
[364938477,1749322241751,-151.0,0.00021423,2]
[364938478,1749322241761,-151.0,0.00021423,2]
[364938479,1749322241772,-198.0,0.00021451,2]
[364938480,1749322241783,-198.0,0.00021451,2]
[364938481,1749322241794,-235.25625285,0.00021452,5]
[364938482,1749322241803,-1494.77,0.000215,2]
[364938483,1749322241813,-440.0,0.00021512,2]
[364938484,1749322241823,-687.77,0.00021516,2]
[364938485,1749322241833,-155.0,0.00021578,2]
[364938486,1749322241844,-235.25625285,0.0002159,5]
[364938487,1749322241854,-235.25625285,0.00021728,5]
[364938488,1749322241864,-1494.77,0.00021774,2]
[364938489,1749322241875,-440.0,0.00021785,2]
[364938490,1749322241885,-505.75232097,0.00021785,2]
[364938491,1749322241895,-440.0,0.00021785,2]
[364938492,1749322241910,-517.93823118,0.00021786,2]
[364938493,1749322241920,-687.77,0.0002179,2]
[364938494,1749322241931,-440.0,0.0002179,2]
[364938495,1749322241941,-440.0,0.0002179,2]
[364938496,1749322241951,-440.0,0.0002179,2]
[364938497,1749322241963,-440.0,0.0002179,2]
[364938498,1749322241972,-151.0,0.00021798,2]
[364938499,1749322241982,-151.0,0.00021798,2]
[364938500,1749322241992,-151.0,0.00021798,2]
[364938501,1749322242002,-207.35253201,0.00021798,2]
[364938502,1749322242012,-948.68,0.000218,2]
[364938503,1749322242022,-151.0,0.00021825,2]
[364938504,1749322242032,-198.0,0.00021853,2]
[364938505,1749322242042,-235.25625285,0.00021866,6]
[364938506,1749322242052,-179.42106666,0.000219,2]
[364938507,1749322242062,-200.0,0.00021917,2]
[364938508,1749322242072,-63647.51495294,0.00022,2]
[364938509,1749322242086,-3143.44173746,0.00022,2]
[364938510,1749322242273,-440.0,0.00019584,2]
[364938511,1749322242283,-440.0,0.00019858,2]
[364938512,1749322242294,-1969.93887083,0.00022,2]
[364938576,1749322246518,-319.77054761,0.00019598,2]
[364938577,1749322368206,162.951236,0.00013699,2]
[364938627,1749322964213,573.92590328,0.00018587,2]
[364938628,1749322964239,287.49472132,0.00018587,2]
[364938632,1749323013111,278.0766187,0.00018591,2]
[364938646,1749323124193,10000.0,0.00018591,2]
[364938658,1749323156332,4828.47985998,0.00018591,2]
[364938659,1749323156357,15394.0512,0.00018591,2]
[364938660,1749323156380,4677.46894002,0.00018591,2]
[364938665,1749323224017,350.605574,0.00018583,2]
[364938666,1749323228722,10365.97668598,0.00018582,2]
[364938667,1749323228746,1066.31596512,0.00018582,2]
[364938773,1749323241119,-176.30409846,0.00019483,2]
[364938774,1749323241142,-197.43691166,0.00019484,2]
[364938775,1749323241164,-300.0,0.0001958,2]
[364938776,1749323241188,-300.0,0.00019581,2]
[364938777,1749323241210,-500.0,0.00019581,2]
[364938778,1749323241232,-236.17344458,0.00019581,2]
[364938779,1749323241256,-265.0,0.00019581,2]
[364938780,1749323241280,-500.0,0.00019581,2]
[364938781,1749323241303,-500.0,0.00019581,2]
[364938782,1749323241325,-500.0,0.00019581,2]
[364938783,1749323241347,-500.0,0.00019581,2]
[364938784,1749323241370,-555.89429106,0.00019581,2]
[364938785,1749323241391,-13249.887,0.00019582,2]
[364938786,1749323241414,-420.0,0.00019582,2]
[364938787,1749323241435,-440.0,0.00019582,2]
[364938788,1749323241456,-500.0,0.00019582,2]
[364938789,1749323241479,-500.0,0.00019582,2]
[364938790,1749323241502,-268.29028833,0.00019582,2]
[364938791,1749323241526,-599.57636926,0.00019582,2]
[364938792,1749323241549,-500.0,0.00019582,2]
[364938793,1749323241574,-500.0,0.00019582,2]
[364938794,1749323241597,-500.0,0.00019582,2]
[364938795,1749323241620,-500.0,0.00019582,2]
[364938796,1749323241643,-440.0,0.00019582,2]
[364938797,1749323241669,-440.0,0.00019582,2]
[364938798,1749323241692,-1416.41,0.00019582,2]
[364938799,1749323241717,-440.0,0.00019582,2]
[364938800,1749323241740,-440.0,0.00019582,2]
[364938801,1749323241761,-440.0,0.00019582,2]
[364938802,1749323241784,-420.00016195,0.00019582,2]
[364938803,1749323241808,-440.0,0.00019582,2]
[364938804,1749323241831,-440.0,0.00019582,2]
[364938805,1749323241856,-440.0,0.00019582,2]
[364938806,1749323241880,-440.0,0.00019582,2]
[364938807,1749323241903,-440.0,0.00019582,2]
[364938808,1749323241928,-440.0,0.00019582,2]
[364938809,1749323241950,-440.0,0.00019582,2]
[364938810,1749323241972,-440.0,0.00019582,2]
[364938811,1749323241995,-440.0,0.00019582,2]
[364938812,1749323242019,-440.0,0.00019582,2]
[364938813,1749323242040,-440.0,0.00019582,2]
[364938814,1749323242062,-440.0,0.00019583,2]
[364938815,1749323242083,-440.0,0.00019583,2]
[364938816,1749323242104,-420.0,0.00019583,2]
[364938817,1749323242126,-430.0,0.00019583,2]
[364938818,1749323242147,-402.10128529,0.00019583,2]
[364938819,1749323242169,-440.0,0.00019583,2]
[364938820,1749323242189,-440.0,0.00019583,2]
[364938821,1749323242212,-430.0,0.00019583,2]
[364938822,1749323242234,-440.0,0.00019583,2]
[364938823,1749323242254,-430.0,0.00019583,2]
[364938824,1749323242275,-440.0,0.00019583,2]
[364938825,1749323242296,-430.0,0.00019583,2]
[364938826,1749323242317,-430.0,0.00019583,2]
[364938827,1749323242338,-440.0,0.00019583,2]
[364938828,1749323242360,-440.0,0.00019583,2]
[364938829,1749323242382,-540.79488643,0.00019583,2]
[364938830,1749323242403,-440.0,0.00019583,2]
[364938831,1749323242425,-150.81881533,0.00019583,2]
[364938832,1749323242446,-440.0,0.00019583,2]
[364938833,1749323242467,-324.53541914,0.00019583,2]
[364938834,1749323242488,-440.0,0.00019583,2]
[364938835,1749323242513,-440.0,0.00019583,2]
[364938836,1749323242536,-440.0,0.00019583,2]
[364938837,1749323242560,-440.0,0.00019583,2]
[364938838,1749323242582,-440.0,0.00019583,2]
[364938839,1749323242603,-440.0,0.00019583,2]
[364938840,1749323242625,-440.0,0.00019583,2]
[364938841,1749323242648,-440.0,0.00019583,2]
[364938842,1749323242673,-440.0,0.00019583,2]
[364938843,1749323242694,-440.0,0.00019583,2]
[364938844,1749323242713,-430.0,0.00019583,2]
[364938845,1749323242734,-430.0,0.00019583,2]
[364938846,1749323242755,-440.0,0.00019583,2]
[364938847,1749323242776,-500.0,0.00019583,2]
[364938848,1749323242797,-440.0,0.00019583,2]
[364938849,1749323242819,-440.0,0.00019583,2]
[364938850,1749323242841,-440.0,0.00019583,2]
[364938851,1749323242865,-380.0,0.00019583,2]
[364938852,1749323242886,-400.0,0.00019583,2]
[364938853,1749323242907,-440.0,0.00019583,2]
[364938854,1749323242931,-440.0,0.00019583,2]
[364938855,1749323242972,-430.0,0.00019583,2]
[364938856,1749323242996,-440.0,0.00019583,2]
[364938857,1749323243017,-398.94269296,0.00019583,2]
[364938858,1749323243039,-430.0,0.00019583,2]
[364938859,1749323243062,-420.0,0.00019583,2]
[364938860,1749323243084,-500.0,0.00019583,2]
[364938861,1749323243106,-500.0,0.00019583,2]
[364938862,1749323243129,-434.00490752,0.00019583,2]
[364938863,1749323243150,-440.0,0.00019583,2]
[364938864,1749323243172,-440.0,0.00019583,2]
[364938865,1749323243194,-440.0,0.00019583,2]
[364938866,1749323243216,-440.0,0.00019583,2]
[364938867,1749323243237,-440.0,0.00019583,2]
[364938868,1749323243258,-440.0,0.00019583,2]
[364938869,1749323243289,-454.35536951,0.00019583,2]
[364938870,1749323243315,-440.0,0.00019583,2]
[364938871,1749323243337,-440.0,0.00019583,2]
[364938872,1749323243357,-440.0,0.00019583,2]
[364938873,1749323243381,-440.0,0.00019583,2]
[364938874,1749323243406,-440.0,0.00019583,2]
[364938875,1749323243430,-440.0,0.00019583,2]
[364938876,1749323243452,-306.49606422,0.00019583,2]
[364938877,1749323243476,-440.0,0.00019583,2]
[364938878,1749323243503,-440.0,0.00019583,2]
[364938879,1749323243526,-440.0,0.00019583,2]
[364938880,1749323243548,-440.0,0.00019583,2]
[364938881,1749323243571,-440.0,0.00019583,2]
[364938882,1749323243597,-440.0,0.00019583,2]
[364938883,1749323243622,-440.0,0.00019583,2]
[364938884,1749323243649,-440.0,0.00019583,2]
[364938885,1749323243675,-509.54459199,0.00019583,2]
[364938886,1749323243698,-440.0,0.00019583,2]
[364938887,1749323243721,-440.0,0.00019583,2]
[364938888,1749323243743,-430.0,0.00019583,2]
[364938889,1749323243767,-440.0,0.00019583,2]
[364938890,1749323243791,-430.0,0.00019583,2]
[364938891,1749323243813,-308.33129502,0.00019583,2]
[364938892,1749323243835,-440.0,0.00019583,2]
[364938893,1749323243859,-430.0,0.00019583,2]
[364938894,1749323243882,-440.0,0.00019583,2]
[364938895,1749323243907,-440.0,0.00019583,2]
[364938896,1749323243931,-430.0,0.00019583,2]
[364938897,1749323243955,-440.0,0.00019583,2]
[364938898,1749323243978,-440.0,0.00019583,2]
[364938899,1749323244007,-440.0,0.00019583,2]
[364938900,1749323244186,-407.59848366,0.00019583,2]
[364938901,1749323244211,-430.0,0.00019583,2]
[364938902,1749323244236,-440.0,0.00019583,2]
[364938903,1749323244259,-430.0,0.00019583,2]
[364938904,1749323244282,-551.99774394,0.00019583,2]
[364938905,1749323244308,-440.0,0.00019583,2]
[364938906,1749323244330,-430.0,0.00019583,2]
[364938907,1749323244352,-440.0,0.00019583,2]
[364938908,1749323244374,-440.0,0.00019583,2]
[364938909,1749323244396,-216.6070701,0.00019583,2]
[364938910,1749323244418,-304.62934788,0.00019583,2]
[364938911,1749323244439,-440.0,0.00019583,2]
[364938912,1749323244462,-420.45683382,0.00019583,2]
[364938913,1749323244484,-440.0,0.00019583,2]
[364938914,1749323244509,-440.0,0.00019583,2]
[364938915,1749323244532,-440.0,0.00019583,2]
[364938916,1749323244555,-440.0,0.00019583,2]
[364938917,1749323244580,-448.19,0.00019583,2]
[364938918,1749323244602,-440.0,0.00019583,2]
[364938919,1749323244623,-435.64955504,0.00019583,2]
[364938920,1749323244645,-471.26148848,0.00019583,2]
[364938921,1749323244669,-440.0,0.00019583,2]
[364938922,1749323244693,-440.0,0.00019583,2]
[364938923,1749323244716,-440.0,0.00019583,2]
[364938924,1749323244739,-440.0,0.00019583,2]
[364938925,1749323244762,-440.0,0.00019583,2]
[364938926,1749323244784,-506.74240925,0.00019583,2]
[364938927,1749323244807,-440.0,0.00019583,2]
[364938928,1749323244828,-440.0,0.00019583,2]
[364938929,1749323244851,-430.0,0.00019583,2]
[364938930,1749323244872,-440.0,0.00019583,2]
[364938931,1749323244894,-440.0,0.00019583,2]
[364938932,1749323244919,-440.0,0.00019583,2]
[364938933,1749323244940,-420.0,0.00019583,2]
[364938934,1749323244961,-440.0,0.00019583,2]
[364938935,1749323244986,-430.0,0.00019583,2]
[364938936,1749323245009,-440.0,0.00019583,2]
[364938937,1749323245032,-440.0,0.00019583,2]
[364938938,1749323245053,-430.0,0.00019583,2]
[364938939,1749323245074,-440.0,0.00019583,2]
[364938940,1749323245095,-440.0,0.00019583,2]
[364938941,1749323245116,-440.0,0.00019583,2]
[364938942,1749323245140,-440.0,0.00019583,2]
[364938943,1749323245162,-440.0,0.00019583,2]
[364938944,1749323245186,-272.543671,0.00019583,2]
[364938945,1749323245208,-440.0,0.00019583,2]
[364938946,1749323245228,-393.41986618,0.00019583,2]
[364938947,1749323245249,-440.0,0.00019583,2]
[364938948,1749323245272,-440.0,0.00019583,2]
[364938949,1749323245293,-440.0,0.00019583,2]
[364938950,1749323245315,-440.0,0.00019583,2]
[364938951,1749323245339,-440.0,0.00019583,2]
[364938952,1749323245362,-440.0,0.00019583,2]
[364938953,1749323245383,-440.0,0.00019583,2]